Cogmind - Beta 13 @@@ ROGUE MODE // 2024.04.24 @ 06:31:59 Player: osman sinnoks Result: Destroyed by G-47 Trooper with Particle Gun Performance ------------- Evolutions (0) 0 Regions Visited (2) 400 Robots Destroyed (20) 100 Value Destroyed (449) 449 Prototype IDs (0) 0 Alien Tech Used (0) 0 Bonus (0) 0 TOTAL SCORE: 949 Bonus ------- None Cogmind --------- Core Integrity 0/250 Matter 486/500 Energy 99/100 System Corruption 0% Temperature Warm (196) Movement Core (1500) Ox29 Location -10/Mines Parts ------- > --- POWER (1) -------- (None) > --- PROPULSION (2) --- Aluminum Leg > --- UTILITY (2) ------ Huge Storage Unit High-capacity Matter Pod > --- WEAPON (2) ------- Particle Gun Light Assault Rifle > --- INVENTORY (25) --- Ion Engine Light Ion Engine Aluminum Leg Aluminum Leg Small Storage Unit High-capacity Storage Unit High-capacity Battery (250) Small Matter Pod (50) Medium Matter Pod (0) Hammer Peak State ------------ > --- POWER ------------ Light Nuclear Core > --- PROPULSION ------- Aluminum Leg Aluminum Leg > --- UTILITY ---------- Huge Storage Unit High-capacity Matter Pod > --- WEAPON ----------- Small Laser Particle Gun > --- INVENTORY -------- Ion Engine Light Ion Engine Aluminum Leg Small Storage Unit High-capacity Storage Unit High-capacity Battery Small Matter Pod Medium Matter Pod Light Assault Rifle Hammer [Rating: 11] Favorites ----------- Power Light Ion Engine Engine Light Ion Engine Power Core Light Nuclear Core Propulsion Light Treads Treads Light Treads Leg Aluminum Leg Hover Unit Hover Unit Flight Unit Flight Unit Utility Huge Storage Unit Device Tractor Beam Storage Huge Storage Unit Weapon Small Laser Energy Gun Small Laser Ballistic Gun Assault Rifle Impact Weapon Hammer Build | -11 -10 -10 ------- Run | Yrd Mat Min Slots Evolved . | . . . Power . | . . . Propulsion . | . . . Utility . | . . . Weapon . | . . . Parts Attached 32 | 7 15 10 Power 6 | 1 3 2 Engine 5 | 1 3 1 Core 1 | . . 1 Reactor . | . . . Propulsion 10 | 2 3 5 Treads 1 | 1 . . Leg 5 | 1 1 3 Wheel . | . . . Hover 1 | . 1 . Flight 3 | . 1 2 Utility 8 | 2 5 1 Device 1 | 1 . . Storage 7 | 1 5 1 Processor . | . . . Hackware . | . . . Protection . | . . . Artifact . | . . . Weapon 8 | 2 4 2 Energy Gun 3 | 1 1 1 Energy Cannon . | . . . Ballistic Gun 4 | 1 2 1 Ballistic Cannon . | . . . Launcher . | . . . Special Weapon . | . . . Impact Weapon 1 | . 1 . Slashing Weapon . | . . . Piercing Weapon . | . . . Special Melee Weapon . | . . . Unidentified Prototypes . | . . . Parts Lost 10 | . 2 8 Power 2 | . . 2 Propulsion 4 | . . 4 Utility 1 | . 1 . Weapon 3 | . 1 2 Highest Loss Streak 5 | . 1 5 To Critical Strikes . | . . . Average Slot Usage (%) 94 | . 96 88 Engine 11 | . 13 6 Core 1 | . . 4 Treads 11 | . 14 4 Leg 7 | . 5 10 Hover 4 | . 3 5 Flight 4 | . 4 3 Device 2 | . 3 . Storage 25 | . 24 28 Energy Gun 13 | . 11 18 Ballistic Gun 11 | . 13 6 Naked Turns . | . . . Heaviest Build 93 | 13 90 93 Greatest Support 20 | 20 20 20 Greatest Overweight (x) 30 | 1 14 30 Average Overweight (x) 4 | . 3 15 Largest Inventory Capacity 25 | 8 25 25 Average Capacity 21 | 7 21 25 Most Carried 11 | . 9 11 Average Carried 6 | . 5 9 Final Capacity 25 | 8 25 25 Final Carried 10 | . 9 10 Class Distribution -------------------- 88% | Mutant 11% | Scavenger-Mutant Dominant Class ---------------- Mutant | -10/Materials Mutant | -10/Mines Resources | -11 -10 -10 ----------- Run | Yrd Mat Min Matter Collected 873 | 279 403 191 Remotely 112 | 10 102 . Salvage Created 619 | 101 311 207 Parts 39 | 5 19 15 Haulers Intercepted . | . . . Recyclers Shooed 1 | . . 1 Parts Field Recycled . | . . . Retrieved Matter . | . . . Parts Self-Destructed . | . . . Prevented . | . . . Kills | -11 -10 -10 ------- Run | Yrd Mat Min Combat Hostiles Destroyed 15 | . 7 8 Guns 15 | . 7 8 Classes Destroyed 5 | 2 3 . Tunneler 1 | 1 . . Recycler 1 | 1 . . Watcher 3 | . 3 . Swarmer 7 | . 2 5 Grunt 8 | . 5 3 Best Kill Streak 5 | 2 2 5 Combat Bots Only 5 | . 2 5 Max Kills in Single Turn 1 | 1 1 1 Gunslinging . | . . . Exploded . | . . . Melee . | . . . Uniques/NPCs Destroyed . | . . . Combat | -11 -10 -10 -------- Run | Yrd Mat Min Hostile Shots Fired 136 | . 34 102 Missed 41 | . 13 28 Damage Taken 1085 | . 337 748 Core 255 | . 22 233 Absorbed by Shields . | . . . Regen/Repaired (Parts) 28 | . 28 . Core Remaining (%) 100 | 100 . . Volleys Fired 108 | 3 77 28 Largest 2 | 2 2 2 Hottest 65 | 60 60 65 Shots Fired 155 | 6 107 42 Gun 155 | 6 107 42 Cannon . | . . . Launcher . | . . . Special . | . . . Kinetic 97 | 3 77 17 Thermal 38 | . 13 25 Explosive . | . . . Electromagnetic 20 | 3 17 . Robot Hit Streak 5 | 2 5 4 Robot Miss Streak 4 | 1 4 4 Penetration Max . | . . . Secondary Targets 2 | . 1 1 Max Gunslinging Chain 1 | . 1 1 Shots Hit Robots 59 | 3 34 22 Core Hits 31 | 2 18 11 Critical Kills . | . . . Critical Parts Destroyed 1 | . . 1 Critical Strikes 1 | . . 1 Destroy 1 | . . 1 Melee Attacks . | . . . Impact . | . . . Slashing . | . . . Piercing . | . . . Sneak Attacks . | . . . Combat Hostiles . | . . . Follow-up Attacks . | . . . Damage Inflicted 738 | 40 396 302 Guns 717 | 40 375 302 Cannons . | . . . Explosions 21 | . 21 . Melee . | . . . Ramming . | . . . Kinetic 304 | . 196 108 Thermal 285 | . 91 194 Explosive . | . . . Electromagnetic 149 | 40 109 . Impact . | . . . Slashing . | . . . Piercing . | . . . Highest Corruption . | . . . Average Corruption . | . . . Corruption Purged . | . . . Corruption Blocked . | . . . Overload Shots . | . . . Overflow Damage 16 | . 16 . Projectiles . | . . . Explosions 16 | . 16 . Melee . | . . . Knockbacks . | . . . Impact . | . . . Kinetic . | . . . Secondary . | . . . Self-Inflicted Damage 38 | . 38 . Shots 1 | . 1 . Rammed . | . . . Targets Rammed . | . . . Kicked . | . . . Crushed . | . . . Highest Temperature 233 | . 83 233 Average Temperature 54 | . 21 86 Received Heat Transfer 363 | . 150 213 Effects 1 | . . 1 Interference 1 | . . 1 Siege Activations . | . . . Robots Corrupted . | . . . Combat Hostiles . | . . . Parts Fried 1 | . 1 . Impact Corruptions . | . . . Robots Melted . | . . . Combat Hostiles . | . . . Parts Melted . | . . . Heat Transferred 648 | . 200 448 Parts Sabotaged . | . . . Parts Stolen . | . . . Parts Stripped . | . . . Power Chain Reactions 1 | . 1 . Alert | -11 -10 -10 ------- Run | Yrd Mat Min Peak Influence 142 | 10 142 111 Initial 6 | . 6 1 Average 32 | 5 42 15 Maximum Alert Level . | . . . Low Security (%) 100 | 100 100 100 Level 1 . | . . . Level 2 . | . . . Level 3 . | . . . Level 4 . | . . . Level 5 . | . . . High Security . | . . . Max Security . | . . . Squads Dispatched 3 | . 3 . Investigation 3 | . 3 . Extermination . | . . . Reinforcement . | . . . Assault . | . . . Garrison . | . . . Intercept . | . . . Searches Triggered . | . . . Construction Impeded . | . . . Haulers Reinforced . | . . . Active Scanning Responses . | . . . Cargo Convoy Interrupts . | . . . Stealth | -11 -10 -10 --------- Run | Yrd Mat Min Distress Signals 2 | . 2 . Communications Jammed . | . . . Distress Signals . | . . . Times Spotted 29 | . 19 10 Peak Tracking Total 3 | . 3 3 Tactical Retreats 1 | . 1 . Traps | -11 -10 -10 ------- Run | Yrd Mat Min Traps Triggered 3 | . 3 . Indirectly . | . . . Trap Hack Attempts . | . . . Triggered . | . . . Disarmed . | . . . Reprogrammed . | . . . Reused . | . . . Traps Extracted . | . . . Installed . | . . . Triggered . | . . . Machines | -11 -10 -10 ---------- Run | Yrd Mat Min Machines Disabled 2 | . 2 . Max in Single Turn 1 | . 1 . Machines Repaired . | . . . Machines Dismantled . | . . . Machines Sabotaged . | . . . Overloaded Fab Kills . | . . . Hacking | -11 -10 -10 --------- Run | Yrd Mat Min Machines Accessed 5 | . 5 . Terminals 3 | . 3 . Fabricators . | . . . Repair Stations 1 | . 1 . Recycling Units 1 | . 1 . Scanalyzers . | . . . Garrison Access . | . . . Total Hacks 21 | . 21 . Successful 15 | . 15 . Failed 6 | . 6 . Catastrophic 2 | . 2 . Database Lockouts . | . . . Manual . | . . . Terminals 14 | . 14 . Fabricators . | . . . Repair Stations 3 | . 3 . Recycling Units 4 | . 4 . Scanalyzers . | . . . Garrison Access . | . . . Terminal Hacks 9 | . 9 . Record 4 | . 4 . Locate Traps 1 | . 1 . Maintenance Status 1 | . 1 . Hauler Manifests 1 | . 1 . Registered Components 1 | . 1 . Zone Layout 1 | . 1 . Fabricator Hacks . | . . . Repair Station Hacks 2 | . 2 . Scan Component 1 | . 1 . Repair 1 | . 1 . Recycling Unit Hacks 4 | . 4 . Process 1 | . 1 . Report Inventory 2 | . 2 . Retrieve Components 1 | . 1 . Scanalyzer . | . . . Garrison Access Hacks . | . . . Unauthorized Hacks . | . . . Terminals . | . . . Fabricators . | . . . Repair Stations . | . . . Recycling Units . | . . . Scanalyzers . | . . . Garrison Access . | . . . Data Cores Recovered . | . . . Used . | . . . Hacking Detections 5 | . 5 . Full Trace Events 3 | . 3 . Feedback Events . | . . . Feedback Blocked . | . . . Robot Schematics Acquired . | . . . Robots Built . | . . . Authchips . | . . . Time . | . . . Total Robot Build Rating . | . . . Part Schematics Acquired . | . . . Parts Built . | . . . Authchips . | . . . Time . | . . . Total Part Build Rating . | . . . Parts Repaired 1 | . 1 . Time 26 | . 26 . Parts Recycled . | . . . Recycled Matter 18 | . 18 . Retrieved Matter . | . . . Retrieved Components . | . . . Parts Scanalyzed . | . . . Part Schematics Acquired . | . . . Parts Damaged . | . . . Bothacking | -11 -10 -10 ------------ Run | Yrd Mat Min Used RIF Installer . | . . . Robots Hacked . | . . . Non-combat . | . . . Combat . | . . . Robot Hacks Applied . | . . . Relay Couplers Released . | . . . Fabnet Peak Effective % . | . . . Robots Rewired . | . . . Allies Hacked . | . . . Hacks Repelled . | . . . Allies | -11 -10 -10 -------- Run | Yrd Mat Min Total Allies . | . . . Largest Group . | . . . Highest-Rated Group . | . . . Highest-Rated Ally . | . . . Total Orders . | . . . Ally Attacks . | . . . Total Damage . | . . . Kills . | . . . Allies Corrupted . | . . . Allies Melted . | . . . Intel | -11 -10 -10 ------- Run | Yrd Mat Min Robot Analysis Total . | . . . Derelict Logs Recovered . | . . . Drone Launches . | . . . Drone Recoveries . | . . . Exploration | -11 -10 -10 ------------- Run | Yrd Mat Min Turns Passed 2970 | 170 1967 833 Spaces Moved 627 | 116 440 71 Core 60 | 47 . 13 Treads 286 | 3 283 . Legs 187 | 66 100 21 Wheels . | . . . Hover 82 | . 56 26 Flight 12 | . 1 11 Fastest Speed 50 | 50 160 400 Average Speed 422 | 131 396 1056 Slowest Speed 1890 | 190 940 1890 Overloaded Moves . | . . . Propulsion Burnouts . | . . . Robots Hopped . | . . . Cave-ins Triggered . | . . . Exploration Rate (%) 31 | 8 62 24 Regions Visited 2 Branch Regions 1 Pre-discovered Areas . | . . . Known Exits Taken . | . . . Unknown Exits Taken 2 | 1 1 . Scrap Searched . | . . . Spaces Dug . | . . . Terrain Destroyed . | . . . Melee . | . . . Projectile . | . . . AOE . | . . . Terrain Rammed . | . . . Walls Destroyed . | . . . Machines Disabled . | . . . Actions | -11 -10 -10 --------- Run | Yrd Mat Min Total 806 | 125 570 111 Wait 31 | . 31 . Move 625 | 115 439 71 Hop . | . . . Pick Up 1 | . 1 . Fast Attach 21 | 7 9 5 Attach 4 | . 1 3 Detach 9 | . 7 2 Swap 7 | . 5 2 Drop . | . . . Fire 108 | 3 77 28 Melee . | . . . Ram . | . . . Kick . | . . . Crush . | . . . Escape Stasis . | . . . Rewire . | . . . Trap . | . . . Miscellaneous . | . . . Route ------- -11/Scrapyard -10/Materials (discovered 2 exits: [*Mat] / [*Min]) -10/Mines History --------- Turn | Location | Event 33 | -11/Scrapyard | Discovered new exit (range 16) 171 | -11/Scrapyard | Entered Materials 305 | -10/Materials | Build established: Mutant 562 | -10/Materials | Discovered new exit (range 13) 1385 | -10/Materials | Discovered new exit (range 15) 1476 | -10/Materials | Repaired Lgt. Ion Engine 2138 | -10/Materials | Entered Mines 2483 | -10/Mines | Core integrity fell below 50% 2516 | -10/Mines | Lost 5 parts (1p3n1w) 2937 | -10/Mines | Build established: Scavenger-Mutant 2957 | -10/Mines | Core integrity fell below 20% 2971 | -10/Mines | Destroyed by G-47 Trooper with Particle Gun Last Messages --------------- Acquired 15 matter. Acquired Flight Unit. Acquired 19 matter. Acquired 16 matter. R-06 Scavenger collects Flight Unit. R-06 Scavenger collects Lgt. Ion Engine. R-06 Scavenger collects Flight Unit. Acquired 20 matter. R-06 Scavenger collects Lgt. Assault Rifle. Acquired 15 matter. Acquired 20 matter. Sml. Laser destroyed. G-34 Mercenary destroyed. K-01 Serf collects debris. Flight Unit destroyed. Overheating: System interference. Particle Gun temporarily disabled. K-01 Serf collects debris. Lgt. Nuclear Core destroyed. K-01 Serf collects debris. Map ----- +----------------------------------------------------+ | ?????????????????????????????????????????????????? | | ?????????????????????????????????????????????????? | | ?????????????????????????????????????????????????? | | ?????????????????????????????????????????????????? | | ?????????????????????????????????????????????????? | | ?????????????????????????????????????????????????? | | ?????????????????????????????????????????????????? | | ?????????????????????????????????????????????????? | | ?????????????????????????????????????????????????? | | ?????????????????????????????????????????????????? | | ?????????????????????????????????????????????????? | | ?????????????????????????????????????????????????? | | ??????????????????#??????????????????????????????? | | ???????????????? ?????????????????????????????? | | ?????????????? ?????????????????????????????? | | ?????????????? r ?????????????????####???????? | | ?????????????? ????????????????## ##??????? | | ??????????????? ?????????????### #??????? | | ????????????????# k ?????????????# #??????? | | ?????????????????# %g ????????????# ##?????? | | ????????????????## [ ???####??????# ##????? | | ????????????????# ?## ##??????# ##???? | | ????????????????# r ## #?????## #???? | | ????????????????# #?????# ##?## | | ?????????????????# #?????# ## | | ??????????????????# @ #?????# | | ??????????????????# ##???## | | ??????????????????# ##### ### | | ??????????????????# [ ##?? | | ??????????????# ##??? | | ??????????????# #???? | | ??????????????#k### ## #???? | | ??????????????#???## #### ## #???? | | ???????????????????## ###??## #### ##???? | | ????????????????????## ##?????## #??####????? | | ?????????????????????# ????????## #??????????? | | ?????????????????????# ?????????# #??????####? | | ?????????????????????# ?????????# #?????## ## | | ?????????????????????# ?????????# #?????# # | | ?????????????????????# ?????????# #?????# | | ?????????????????????# ?????????# ####### ! | | ??????????????????????? ?????????# ! ! | | ???????????????????????????????????# | | ???????????????????????????????????############# | | ???????????????????????????????????????????????### | | ?????????????????????????????????????????????????? | | ?????????????????????????????????????????????????? | | ?????????????????????????????????????????????????? | | ?????????????????????????????????????????????????? | | ?????????????????????????????????????????????????? | +----------------------------------------------------+ Best States ------------- Heat Dissipation 25 Energy Generation 14 Energy Capacity 250 Matter Stores 489 Matter Capacity 500 Sight Range 16 Terrain Scan Density 10 Evasion (%) 50 Recoil Reduction 1 Item Schematics ----------------- None Robot Schematics ------------------ None Fabricated ------------ Nothing Alien Tech Used ----------------- None Achievements -------------- None Challenges ------------ None Game ------ Seed ProcessingCoreEngine Manual? 0 Play Time 00:37:38 Cumulative 10.1 hours Start 2024.04.24 @ 05:51:33 End 2024.04.24 @ 06:31:59 Sessions 1 Manual Loads 0 Difficulty Rogue Special Mode None Game No. 17 Rogue 17 Adventurer 0 Explorer 0 Win Type - Total 0 Types 0/0/0/0/0/0/0/0/0 Lore% 19 Gallery% 19 Achievement% 17 Wizard Run 0 Options --------- Layout 1 ASCII 0 Keyboard 0 Movement Mouse Keybinds 0 Fullscreen 1 Font 24/Smallcaps Map View 50x35 Zoom Use 0% Tactical HUD 0 Map Filters NONE Filters NONE Steam 1 RUN: 2ad9b1e5-7bb0-4f58-862e-6714fb71df98